[Event "ROU-ch Women 2021"]
[Site "Iasi"]
[Date "2021.04.24"]
[Round "8.6"]
[White "Lehaci, Miruna-Daria"]
[Black "Andries, Alexia"]
[Result "1-0"]
[ECO "B42"]
[WhiteElo "2188"]
[BlackElo "1553"]
[Annotator "NA"]
[PlyCount "113"]
[EventDate "2021.04.19"]
[EventType "swiss"]
[EventCountry "ROU"]
[SourceTitle "playchess.com"]
[Source "ChessBase"]
[SourceQuality "1"]
[TimeControl "5400+30"]

1. e4 {[%emt 0:00:00]} c5 {[%emt 0:00:00]} 2. Nf3 {[%emt 0:00:00]} e6 {[%emt 0:00:00]} 3. d4 {[%emt 0:00:00]} cxd4 {[%emt 0:00:00]} 4. Nxd4 {[%emt 0:00:00]} a6 {[%emt 0:00:00]} 5. Bd3 {[%emt 0:00:00]} Qc7 {[%emt 0:01:28]} 6. O-O {[%emt 0:00:00]} Nf6 {[%emt 0:00:57]} 7. Kh1 {[%emt 0:00:08]} Be7 {[%emt 0:01:13]} 8. f4 {[%emt 0:00:38]} d6 {[%emt 0:00:17]} 9. a4 {[%emt 0:00:50]} Nbd7 {[%emt 0:00:31]} 10. a5 {[%emt 0:02:54]} b5 {[%emt 0:03:45]} 11. axb6 {[%emt 0:04:06]} Qxb6 {[%emt 0:03:46]} 12. Nb3 {[%emt 0:01:16]} Bb7 {[%emt 0:06:25]} 13. Qe2 {[%emt 0:02:48]} Qc7 {[%emt 0:02:14]} 14. Nc3 {[%emt 0:02:10]} O-O {[%emt 0:00:39]} 15. Bd2 {[%emt 0:02:39]} e5 {[%emt 0:04:54]} 16. Bxa6 {[%emt 0:04:38]} Bc6 {[%emt 0:03:12]} 17. Bd3 {[%emt 0:03:38]} d5 {[%emt 0:04:50]} 18. Rxa8 {[%emt 0:01:01]} Rxa8 {[%emt 0:00:07]} 19. exd5 {[%emt 0:01:55]} Nxd5 {[%emt 0:00:21]} 20. Nxd5 {[%emt 0:02:45]} Bxd5 {[%emt 0:00:20]} 21. Bxh7+ {[%emt 0:01:43]} Kf8 {[%emt 0:04:27]} 22. Be4 {[%emt 0:03:24]} Bxe4 {[%emt 0:02:46]} 23. Qxe4 {[%emt 0:00:25]} Rc8 {[%emt 0:00:34]} 24. Bc3 {[%emt 0:01:21]} Qc4 {[%emt 0:07:31]} 25. Qxc4 {[%emt 0:02:23]} Rxc4 {[%emt 0:00:09]} 26. fxe5 {[%emt 0:00:10]} Re4 {[%emt 0:03:08]} 27. Ra1 {[%emt 0:08:04]} Bg5 {[%emt 0:03:03]} 28. Nd2 {[%emt 0:03:36]} Re2 {[%emt 0:01:50]} 29. Nf3 {[%emt 0:00:21]} Bf4 {[%emt 0:00:39]} 30. Ra8+ {[%emt 0:00:48]} Ke7 {[%emt 0:00:22]} 31. Bb4+ {[%emt 0:00:09]} Nc5 {[%emt 0:01:41]} 32. Bxc5+ {[%emt 0:00:06]} Kd7 {[%emt 0:00:12]} 33. Ra7+ {[%emt 0:00:28]} Kd8 {[%emt 0:00:08]} 34. Rxf7 {[%emt 0:00:55]} Bc1 {[%emt 0:00:08]} 35. b4 {[%emt 0:00:46]} Rxc2 {[%emt 0:00:12]} 36. e6 {[%emt 0:00:40]} Re2 {[%emt 0:00:18]} 37. e7+ {[%emt 0:00:38]} Kd7 {[%emt 0:00:32]} 38. Rf8 {[%emt 0:00:06]} Ba3 {[%emt 0:00:37]} 39. Rd8+ {[%emt 0:00:05]} Kc7 {[%emt 0:00:06]} 40. e8=Q {[%emt 0:00:08]} Rxe8 {[%emt 0:00:09]} 41. Rxe8 {[%emt 0:00:04]} Kc6 {[%emt 0:00:06]} 42. Rd8 {[%emt 0:00:10]} Bb2 {[%emt 0:00:10]} 43. Nd4+ {[%emt 0:00:06]} Bxd4 {[%emt 0:00:11]} 44. Rxd4 {[%emt 0:00:05]} Kb5 {[%emt 0:00:07]} 45. h4 {[%emt 0:00:18]} g6 {[%emt 0:00:13]} 46. g4 {[%emt 0:00:05]} Ka4 {[%emt 0:00:06]} 47. h5 {[%emt 0:00:04]} gxh5 {[%emt 0:00:04]} 48. gxh5 {[%emt 0:00:03]} Kb5 {[%emt 0:00:08]} 49. h6 {[%emt 0:00:04]} Ka4 {[%emt 0:00:06]} 50. h7 {[%emt 0:00:04]} Kb5 {[%emt 0:00:04]} 51. h8=Q {[%emt 0:00:05]} Ka4 {[%emt 0:00:03]} 52. b5+ {[%emt 0:00:15]} Kxb5 {[%emt 0:00:05]} 53. Qb8+ {[%emt 0:00:05]} Kxc5 {[%emt 0:00:07]} 54. Qe5+ {[%emt 0:00:03]} Kc6 {[%emt 0:00:07]} 55. Rd6+ {[%emt 0:00:03]} Kc7 {[%emt 0:00:04]} 56. Qe7+ {[%emt 0:00:03]} Kc8 {[%emt 0:00:05]} 57. Rd8# {[%emt 0:00:03]} 1-0

[Event "ROU-ch Women 2021"]
[Site "Iasi"]
[Date "2021.04.25"]
[Round "9.1"]
[White "Anghel, Maria"]
[Black "Ciolacu, Alessia-Mihaela"]
[Result "0-1"]
[ECO "E11"]
[WhiteElo "1918"]
[BlackElo "2052"]
[Annotator "ChessBase"]
[PlyCount "136"]
[EventDate "2021.04.19"]
[EventType "swiss"]
[EventCountry "ROU"]
[SourceTitle "playchess.com"]
[Source "ChessBase"]
[SourceQuality "1"]
[TimeControl "5400+30"]

1. d4 {[%emt 0:00:00]} e6 {[%emt 0:00:00]} 2. c4 {[%emt 0:00:00]} Nf6 {[%emt 0:00:00]} 3. Nf3 {[%emt 0:00:04]} Bb4+ {[%emt 0:01:39]} 4. Bd2 {[%emt 0:00:19]} Qe7 {[%emt 0:00:57]} 5. g3 {[%emt 0:00:20]} O-O {[%emt 0:00:33]} 6. Bg2 {[%emt 0:00:07]} d5 {[%emt 0:00:04]} 7. cxd5 {[%emt 0:07:17]} exd5 {[%emt 0:00:05]} 8. O-O {[%emt 0:03:16]} Bf5 {[%emt 0:07:06]} 9. a3 {[%emt 0:08:02]} Bd6 {[%emt 0:00:53]} 10. Nc3 {[%emt 0:01:26]} c6 {[%emt 0:00:34]} 11. Rc1 {[%emt 0:02:43]} h6 {[%emt 0:00:55]} 12. Ne1 {[%emt 0:19:41]} Nbd7 {[%emt 0:02:25]} 13. Nd3 {[%emt 0:05:45]} Nb6 {[%emt 0:05:27]} 14. Bf4 {[%emt 0:10:08]} Nc4 {[%emt 0:03:31]} 15. Bxd6 {[%emt 0:01:16]} Qxd6 {[%emt 0:00:05]} 16. Re1 {[%emt 0:02:34]} Rfe8 {[%emt 0:03:11]} 17. Qb3 {[%emt 0:05:08]} Re7 {[%emt 0:06:38]} 18. Qa2 {[%emt 0:04:33]} Rae8 {[%emt 0:02:31]} 19. Qa1 {[%emt 0:06:44]} Nd2 {[%emt 0:18:29]} 20. Nc5 {[%emt 0:06:08]} b6 {[%emt 0:01:58]} 21. Rcd1 {[%emt 0:01:04]} Nc4 {[%emt 0:03:45]} 22. Nd3 {[%emt 0:01:07]} Ne4 {[%emt 0:03:14]} 23. b4 {[%emt 0:03:47]} Nxc3 {[%emt 0:04:33]} 24. Qxc3 {[%emt 0:00:05]} Rxe2 {[%emt 0:01:31]} 25. Rxe2 {[%emt 0:04:14]} Rxe2 {[%emt 0:00:05]} 26. Ne5 {[%emt 0:03:41]} Nxe5 {[%emt 0:01:08]} 27. Bf1 {[%emt 0:01:35]} Re4 {[%emt 0:03:00]} 28. Bg2 {[%emt 0:00:23]} Nc4 {[%emt 0:01:00]} 29. Bxe4 {[%emt 0:00:28]} Bxe4 {[%emt 0:00:01]} 30. Re1 {[%emt 0:00:41]} Qf6 {[%emt 0:01:38]} 31. Rxe4 {[%emt 0:00:48]} dxe4 {[%emt 0:00:05]} 32. Qxc4 {[%emt 0:00:07]} Qd6 {[%emt 0:02:34]} 33. a4 {[%emt 0:01:41]} Qd5 {[%emt 0:10:54]} 34. Qa6 {[%emt 0:00:38]} Qd7 {[%emt 0:04:41]} 35. b5 {[%emt 0:01:06]} cxb5 {[%emt 0:03:55]} 36. axb5 {[%emt 0:00:11]} g6 {[%emt 0:02:21]} 37. Qa4 {[%emt 0:00:28]} Qd5 {[%emt 0:00:25]} 38. Qxa7 {[%emt 0:00:41]} Qxd4 {[%emt 0:00:05]} 39. Qa8+ {[%emt 0:00:33]} Kg7 {[%emt 0:00:08]} 40. Qc6 {[%emt 0:00:26]} h5 {[%emt 0:03:54]} 41. h4 {[%emt 0:00:16]} Qd1+ {[%emt 0:01:07]} 42. Kh2 {[%emt 0:00:27]} Qd4 {[%emt 0:00:21]} 43. Kg1 {[%emt 0:00:19]} e3 {[%emt 0:00:38]} 44. fxe3 {[%emt 0:00:10]} Qxe3+ {[%emt 0:00:05]} 45. Kg2 {[%emt 0:00:44]} Qe2+ {[%emt 0:00:14]} 46. Kg1 {[%emt 0:01:03]} Qd1+ {[%emt 0:00:46]} 47. Kh2 {[%emt 0:00:34]} Qd2+ {[%emt 0:00:37]} 48. Kg1 {[%emt 0:00:25]} Qe1+ {[%emt 0:00:07]} 49. Kg2 {[%emt 0:00:26]} Qe6 {[%emt 0:00:24]} 50. Qc3+ {[%emt 0:00:31]} Qf6 {[%emt 0:00:05]} 51. Qc6 {[%emt 0:00:33]} Qd4 {[%emt 0:00:19]} 52. Kh1 {[%emt 0:00:42]} Qf2 {[%emt 0:00:17]} 53. Qc3+ {[%emt 0:00:28]} Kg8 {[%emt 0:01:01]} 54. Qc8+ {[%emt 0:00:32]} Kh7 {[%emt 0:00:15]} 55. Qe8 {[%emt 0:00:29]} Kg7 {[%emt 0:00:38]} 56. Qe5+ {[%emt 0:00:33]} Qf6 {[%emt 0:00:06]} 57. Qe8 {[%emt 0:00:26]} Qf3+ {[%emt 0:01:18]} 58. Kh2 {[%emt 0:00:06]} Qf2+ {[%emt 0:00:17]} 59. Kh3 {[%emt 0:00:11]} Kf6 {[%emt 0:00:49]} 60. Qd8+ {[%emt 0:01:14]} Ke6 {[%emt 0:00:37]} 61. Qe8+ {[%emt 0:00:31]} Kf6 {[%emt 0:00:38]} 62. Qd8+ {[%emt 0:00:21]} Ke5 {[%emt 0:00:36]} 63. Qc7+ {[%emt 0:00:41]} Ke4 {[%emt 0:00:25]} 64. Qc6+ {[%emt 0:00:31]} Kd3 {[%emt 0:00:07]} 65. Qd5+ {[%emt 0:00:30]} Kc3 {[%emt 0:00:14]} 66. Qe5+ {[%emt 0:00:30]} Kb4 {[%emt 0:00:13]} 67. Qe7+ {[%emt 0:00:31]} Kxb5 {[%emt 0:00:10]} 68. Qg5+ {[%emt 0:00:28]} Qf5+ {[%emt 0:00:14]} 0-1

[Event "ROU-ch Women 2021"]
[Site "Iasi"]
[Date "2021.04.25"]
[Round "9.2"]
[White "Maria, Lia-Alexandra"]
[Black "Sandu, Mihaela"]
[Result "0-1"]
[ECO "B42"]
[WhiteElo "1713"]
[BlackElo "2268"]
[Annotator "ChessBase"]
[PlyCount "38"]
[EventDate "2021.04.19"]
[EventType "swiss"]
[EventCountry "ROU"]
[SourceTitle "playchess.com"]
[Source "ChessBase"]
[SourceQuality "1"]
[TimeControl "5400+30"]

1. e4 {[%emt 0:00:00]} c5 {[%emt 0:00:00]} 2. Nf3 {[%emt 0:00:00]} e6 {[%emt 0:00:00]} 3. d4 {[%emt 0:00:00]} cxd4 {[%emt 0:00:00]} 4. Nxd4 {[%emt 0:00:03]} a6 {[%emt 0:00:00]} 5. Bd3 {[%emt 0:00:13]} Nc6 {[%emt 0:00:58]} 6. Nxc6 {[%emt 0:06:24]} dxc6 {[%emt 0:00:20]} 7. O-O {[%emt 0:00:36]} e5 {[%emt 0:00:52]} 8. Nd2 {[%emt 0:02:41]} Qc7 {[%emt 0:04:35]} 9. a3 {[%emt 0:04:35]} Be6 {[%emt 0:12:49]} 10. b4 {[%emt 0:03:41]} c5 {[%emt 0:01:46]} 11. bxc5 {[%emt 0:06:54]} Bxc5 {[%emt 0:00:09]} 12. Nb3 {[%emt 0:00:41]} Ba7 {[%emt 0:00:55]} 13. Bb2 {[%emt 0:02:10]} Ne7 {[%emt 0:02:25]} 14. c4 {[%emt 0:03:57]} O-O {[%emt 0:05:12]} 15. Qc2 {[%emt 0:00:56]} Ng6 {[%emt 0:11:36]} 16. g3 {[%emt 0:03:29]} Rac8 {[%emt 0:01:38]} 17. Rac1 {[%emt 0:01:00]} Rfd8 {[%emt 0:00:15]} 18. Rfd1 {[%emt 0:01:36]} b5 {[%emt 0:03:11]} 19. cxb5 {[%emt 0:02:27]} Qb6 {[%emt 0:01:16]} 0-1

[Event "ROU-ch Women 2021"]
[Site "Iasi"]
[Date "2021.04.25"]
[Round "9.4"]
[White "Andries, Alexia"]
[Black "Obada, Ema"]
[Result "0-1"]
[ECO "E47"]
[WhiteElo "1553"]
[BlackElo "1940"]
[Annotator "ChessBase"]
[PlyCount "98"]
[EventDate "2021.04.19"]
[EventType "swiss"]
[EventCountry "ROU"]
[SourceTitle "playchess.com"]
[Source "ChessBase"]
[SourceQuality "1"]
[TimeControl "5400+30"]

1. d4 {[%emt 0:00:00]} e6 {[%emt 0:00:00]} 2. c4 {[%emt 0:00:00]} Nf6 {[%emt 0:00:00]} 3. Nc3 {[%emt 0:00:24]} Bb4 {[%emt 0:00:00]} 4. e3 {[%emt 0:00:30]} O-O {[%emt 0:00:04]} 5. Bd3 {[%emt 0:00:40]} d6 {[%emt 0:00:20]} 6. Nf3 {[%emt 0:01:52]} Qe7 {[%emt 0:00:34]} 7. e4 {[%emt 0:02:09]} e5 {[%emt 0:00:35]} 8. d5 {[%emt 0:01:16]} Bxc3+ {[%emt 0:00:53]} 9. bxc3 {[%emt 0:00:10]} h6 {[%emt 0:00:27]} 10. h3 {[%emt 0:00:17]} b6 {[%emt 0:01:23]} 11. O-O {[%emt 0:01:37]} Na6 {[%emt 0:08:27]} 12. Be3 {[%emt 0:04:17]} Nc5 {[%emt 0:01:26]} 13. Bxc5 {[%emt 0:00:26]} bxc5 {[%emt 0:02:56]} 14. Rb1 {[%emt 0:01:04]} Nh5 {[%emt 0:01:20]} 15. Qd2 {[%emt 0:06:38]} Nf4 {[%emt 0:01:19]} 16. Rb3 {[%emt 0:02:31]} Qf6 {[%emt 0:00:47]} 17. Kh2 {[%emt 0:03:05]} Nxh3 {[%emt 0:02:23]} 18. gxh3 {[%emt 0:00:40]} Qxf3 {[%emt 0:00:10]} 19. Qe3 {[%emt 0:00:49]} Qh5 {[%emt 0:01:33]} 20. Rg1 {[%emt 0:03:13]} f5 {[%emt 0:01:22]} 21. exf5 {[%emt 0:00:29]} Bxf5 {[%emt 0:00:14]} 22. Bxf5 {[%emt 0:00:11]} Rxf5 {[%emt 0:00:23]} 23. Qg3 {[%emt 0:01:05]} Qf7 {[%emt 0:02:00]} 24. Rb2 {[%emt 0:00:50]} Rf8 {[%emt 0:03:59]} 25. Rg2 {[%emt 0:02:33]} Qf6 {[%emt 0:02:28]} 26. Re2 {[%emt 0:04:18]} Rf3 {[%emt 0:02:00]} 27. Qg4 {[%emt 0:00:19]} Rxc3 {[%emt 0:01:16]} 28. Re3 {[%emt 0:00:44]} Rxe3 {[%emt 0:02:42]} 29. fxe3 {[%emt 0:00:05]} Qe7 {[%emt 0:03:44]} 30. h4 {[%emt 0:01:09]} Rf6 {[%emt 0:05:25]} 31. Rb2 {[%emt 0:02:01]} e4 {[%emt 0:00:53]} 32. Rb7 {[%emt 0:00:35]} Qe5+ {[%emt 0:00:48]} 33. Kg2 {[%emt 0:00:57]} h5 {[%emt 0:02:41]} 34. Qg3 {[%emt 0:00:48]} Qf5 {[%emt 0:00:27]} 35. Rxc7 {[%emt 0:00:37]} Qf1+ {[%emt 0:00:12]} 36. Kh2 {[%emt 0:00:12]} Rf2+ {[%emt 0:00:05]} 37. Qxf2 {[%emt 0:00:08]} Qxf2+ {[%emt 0:00:03]} 38. Kh3 {[%emt 0:00:07]} Qxe3+ {[%emt 0:00:06]} 39. Kg2 {[%emt 0:00:15]} Qf3+ {[%emt 0:00:06]} 40. Kg1 {[%emt 0:00:07]} e3 {[%emt 0:00:06]} 41. Re7 {[%emt 0:00:07]} Qf2+ {[%emt 0:00:08]} 42. Kh1 {[%emt 0:00:10]} Qxh4+ {[%emt 0:00:09]} 43. Kg1 {[%emt 0:00:05]} Qxe7 {[%emt 0:00:04]} 44. Kf1 {[%emt 0:00:05]} e2+ {[%emt 0:00:08]} 45. Ke1 {[%emt 0:00:04]} h4 {[%emt 0:00:20]} 46. a4 {[%emt 0:00:25]} a5 {[%emt 0:00:04]} 47. Kf2 {[%emt 0:01:14]} e1=Q+ {[%emt 0:00:06]} 48. Kg2 {[%emt 0:00:51]} Q7e4+ {[%emt 0:00:06]} 49. Kh2 {[%emt 0:00:10]} Qg3# {[%emt 0:00:05]} 0-1

[Event "ROU-ch Women 2021"]
[Site "Iasi"]
[Date "2021.04.25"]
[Round "9.5"]
[White "Marcu, Daria-Ana"]
[Black "Lehaci, Miruna-Daria"]
[Result "0-1"]
[ECO "C17"]
[WhiteElo "1533"]
[BlackElo "2188"]
[Annotator "ChessBase"]
[PlyCount "74"]
[EventDate "2021.04.19"]
[EventType "swiss"]
[EventCountry "ROU"]
[SourceTitle "playchess.com"]
[Source "ChessBase"]
[SourceQuality "1"]
[TimeControl "5400+30"]

1. e4 {[%emt 0:00:00]} e6 {[%emt 0:00:00]} 2. d4 {[%emt 0:00:00]} d5 {[%emt 0:00:00]} 3. Nc3 {[%emt 0:00:00]} Bb4 {[%emt 0:00:00]} 4. e5 {[%emt 0:00:00]} c5 {[%emt 0:00:00]} 5. Bd2 {[%emt 0:00:00]} Ne7 {[%emt 0:00:00]} 6. a3 {[%emt 0:00:06]} Bxc3 {[%emt 0:00:00]} 7. Bxc3 {[%emt 0:00:07]} b6 {[%emt 0:00:00]} 8. Nf3 {[%emt 0:00:11]} Qc7 {[%emt 0:00:49]} 9. Bd3 {[%emt 0:01:01]} Ba6 {[%emt 0:03:42]} 10. O-O {[%emt 0:01:03]} Bxd3 {[%emt 0:01:01]} 11. Qxd3 {[%emt 0:00:10]} a6 {[%emt 0:03:53]} 12. b4 {[%emt 0:05:49]} Nd7 {[%emt 0:06:36]} 13. Rac1 {[%emt 0:05:37]} c4 {[%emt 0:04:13]} 14. Qd2 {[%emt 0:00:16]} O-O-O {[%emt 0:04:09]} 15. Nh4 {[%emt 0:04:06]} Ng6 {[%emt 0:07:33]} 16. Nf3 {[%emt 0:00:55]} Kb7 {[%emt 0:04:42]} 17. Qe3 {[%emt 0:01:20]} h6 {[%emt 0:01:16]} 18. a4 {[%emt 0:05:43]} Ne7 {[%emt 0:01:03]} 19. Rfe1 {[%emt 0:04:57]} g5 {[%emt 0:03:01]} 20. h3 {[%emt 0:00:57]} Rdg8 {[%emt 0:01:09]} 21. Nh2 {[%emt 0:01:44]} h5 {[%emt 0:01:54]} 22. Nf1 {[%emt 0:02:15]} Nf5 {[%emt 0:02:34]} 23. Qe2 {[%emt 0:01:08]} g4 {[%emt 0:00:15]} 24. h4 {[%emt 0:02:15]} Nxh4 {[%emt 0:00:29]} 25. Ng3 {[%emt 0:00:25]} Ng6 {[%emt 0:01:46]} 26. Qe3 {[%emt 0:02:41]} Qd8 {[%emt 0:03:36]} 27. Ne2 {[%emt 0:02:07]} Ne7 {[%emt 0:01:10]} 28. Qf4 {[%emt 0:00:47]} Rh7 {[%emt 0:00:55]} 29. Bd2 {[%emt 0:01:15]} h4 {[%emt 0:03:30]} 30. Rf1 {[%emt 0:08:14]} Nf5 {[%emt 0:02:16]} 31. Nc3 {[%emt 0:00:29]} Nf8 {[%emt 0:00:38]} 32. Ne2 {[%emt 0:01:29]} Rhg7 {[%emt 0:05:10]} 33. g3 {[%emt 0:03:14]} Ng6 {[%emt 0:01:28]} 34. Qg5 {[%emt 0:00:58]} Qe8 {[%emt 0:00:37]} 35. Qf6 {[%emt 0:01:46]} Nge7 {[%emt 0:00:59]} 36. Nf4 {[%emt 0:01:30]} Rh8 {[%emt 0:06:28]} 37. Nxe6 {[%emt 0:03:20]} fxe6 {[%emt 0:00:11]} 0-1

[Event "ROU-ch Women 2021"]
[Site "Iasi"]
[Date "2021.04.25"]
[Round "9.6"]
[White "Pirvan, Maria"]
[Black "Cosman, Andreea-Marioara"]
[Result "0-1"]
[ECO "B66"]
[WhiteElo "1529"]
[BlackElo "2164"]
[Annotator "ChessBase"]
[PlyCount "74"]
[EventDate "2021.04.19"]
[EventType "swiss"]
[EventCountry "ROU"]
[SourceTitle "playchess.com"]
[Source "ChessBase"]
[SourceQuality "1"]
[TimeControl "5400+30"]

1. e4 {[%emt 0:00:00]} c5 {[%emt 0:00:00]} 2. Nf3 {[%emt 0:00:00]} d6 {[%emt 0:00:00]} 3. d4 {[%emt 0:00:00]} cxd4 {[%emt 0:00:00]} 4. Nxd4 {[%emt 0:00:00]} Nf6 {[%emt 0:00:00]} 5. Nc3 {[%emt 0:00:00]} a6 {[%emt 0:00:00]} 6. Bg5 {[%emt 0:00:00]} e6 {[%emt 0:00:03]} 7. f4 {[%emt 0:00:00]} Nc6 {[%emt 0:00:05]} 8. Qd2 {[%emt 0:03:48]} h6 {[%emt 0:00:09]} 9. Bxf6 {[%emt 0:08:52]} Qxf6 {[%emt 0:00:15]} 10. Nxc6 {[%emt 0:02:14]} bxc6 {[%emt 0:00:07]} 11. O-O-O {[%emt 0:02:56]} Qd8 {[%emt 0:00:12]} 12. Bd3 {[%emt 0:17:05]} Rb8 {[%emt 0:11:16]} 13. Rhf1 {[%emt 0:07:51]} Be7 {[%emt 0:09:57]} 14. g3 {[%emt 0:06:31]} O-O {[%emt 0:04:04]} 15. h4 {[%emt 0:02:17]} Qa5 {[%emt 0:00:17]} 16. Rde1 {[%emt 0:14:17]} d5 {[%emt 0:09:53]} 17. exd5 {[%emt 0:04:59]} cxd5 {[%emt 0:05:30]} 18. a3 {[%emt 0:10:24]} Rxb2 {[%emt 0:11:45]} 19. Nxd5 {[%emt 0:07:46]} Bb4 {[%emt 0:02:56]} 20. Nxb4 {[%emt 0:02:07]} Qxa3 {[%emt 0:00:05]} 21. Kd1 {[%emt 0:01:33]} Rxb4 {[%emt 0:01:22]} 22. Re3 {[%emt 0:02:58]} Qa4 {[%emt 0:02:07]} 23. Ke2 {[%emt 0:00:38]} Rd4 {[%emt 0:01:23]} 24. Qc3 {[%emt 0:00:46]} Rfd8 {[%emt 0:01:42]} 25. Ra1 {[%emt 0:01:44]} Qd7 {[%emt 0:00:05]} 26. Re4 {[%emt 0:00:46]} Rxe4+ {[%emt 0:01:06]} 27. Bxe4 {[%emt 0:00:04]} Bb7 {[%emt 0:00:13]} 28. Bxb7 {[%emt 0:02:02]} Qxb7 {[%emt 0:00:05]} 29. Kf2 {[%emt 0:01:08]} Rc8 {[%emt 0:02:47]} 30. Qb3 {[%emt 0:01:24]} Qe4 {[%emt 0:01:10]} 31. Rc1 {[%emt 0:00:42]} a5 {[%emt 0:04:04]} 32. c3 {[%emt 0:00:36]} a4 {[%emt 0:01:23]} 33. Qa3 {[%emt 0:00:29]} Rd8 {[%emt 0:02:39]} 34. Qa2 {[%emt 0:00:32]} Rd3 {[%emt 0:01:40]} 35. Qe2 {[%emt 0:00:29]} Qxe2+ {[%emt 0:00:06]} 36. Kxe2 {[%emt 0:00:06]} Rxg3 {[%emt 0:00:03]} 37. c4 {[%emt 0:00:16]} Kf8 {[%emt 0:00:24]} 0-1